Cogmind - Beta 16 @@@ ROGUE MODE // 2025.10.23 @ 15:11:03 Player: Petvaria Result: Self-destructed Performance ------------- Evolutions (4) 2000 Regions Visited (4) 800 Robots Destroyed (23) 115 Value Destroyed (777) 777 Prototype IDs (14) 280 Alien Tech Used (0) 0 Bonus (345) 345 TOTAL SCORE: 4317 Bonus ------- Follower Combat Kills 45 Registered with UFD 300 Cogmind --------- Core Integrity 39/850 Matter 300/300 Energy 100/100 System Corruption 3% Temperature Cool (0) Movement Core (100) Ox1 Location -6/Factory Parts ------- > --- POWER (1) -------- (None) > --- PROPULSION (5) --- (None) > --- UTILITY (7) ------ Improved Hacking Suite System Shield Improved System Shield > --- WEAPON (2) ------- IN-MT5's Pitchfork "Insurrection" > --- INVENTORY (5) ---- Light Angular Momentum Engine Medium Storage Unit Improved Reaction Control System Heavy Assault Rifle Peak State ------------ > --- POWER ------------ Micro Nuclear Core > --- PROPULSION ------- Carbon-fiber Leg > --- UTILITY ---------- Large Storage Unit Improved Hacking Suite Improved Hacking Suite System Shield > --- WEAPON ----------- Heavy Plasma Cannon > --- INVENTORY -------- Light Ion Engine Light Angular Momentum Engine Light Fission Core Light Fission Core Compact Wheel Advanced Heat Sink Medium Storage Unit Experimental Sensor Array Improved Reaction Control System Heavy Laser Heavy Assault Rifle Flak Gun Heavy Hammer [Rating: 30] Favorites ----------- Power Light Ion Engine Engine Light Ion Engine Power Core Light Fission Core Propulsion Light Treads Treads Light Treads Leg Carbon-fiber Leg Wheel Compact Wheel Utility Large Storage Unit Device Advanced Sensor Array Storage Large Storage Unit Hackware System Shield Protection Light Armor Plating Weapon Small Laser Energy Gun Small Laser Energy Cannon Heavy Plasma Cannon Ballistic Gun Flak Gun Special Weapon IN-MT5's Pitchfork "Insurrection" Impact Weapon Heavy Hammer Build | -11 -10 -10 -9 -6 ------- Run | Yrd Mat Sub Scr Fac Slots Evolved 8 | . . . . 8 Power . | . . . . . Propulsion 3 | . . . . 3 Utility 5 | . . . . 5 Weapon . | . . . . . Parts Attached 35 | 6 3 . 4 22 Power 4 | 1 1 . . 2 Engine 2 | 1 1 . . . Core 2 | . . . . 2 Reactor . | . . . . . Propulsion 10 | 2 . . 2 6 Treads 5 | 2 . . 2 1 Leg 1 | . . . . 1 Wheel 4 | . . . . 4 Hover . | . . . . . Flight . | . . . . . Utility 11 | 1 2 . 1 7 Device 1 | . . . . 1 Storage 2 | 1 1 . . . Processor . | . . . . . Hackware 4 | . . . . 4 Protection 4 | . 1 . 1 2 Artifact . | . . . . . Weapon 10 | 2 . . 1 7 Energy Gun 4 | 2 . . . 2 Energy Cannon 1 | . . . . 1 Ballistic Gun 3 | . . . . 3 Ballistic Cannon . | . . . . . Launcher . | . . . . . Special Weapon 1 | . . . . 1 Impact Weapon 1 | . . . 1 . Slashing Weapon . | . . . . . Piercing Weapon . | . . . . . Special Melee Weapon . | . . . . . Unidentified Prototypes . | . . . . . Parts Lost 20 | . 1 1 2 16 Power 2 | . 1 . . 1 Propulsion 7 | . . . . 7 Utility 6 | . . 1 1 4 Weapon 5 | . . . 1 4 Highest Loss Streak 7 | . 1 1 2 7 To Critical Strikes . | . . . . . Average Backups 6 | 2 4 5 6 9 Power . | . . . . 2 Propulsion 1 | . 2 2 2 . Utility 2 | . 1 2 2 4 Weapon 1 | . 1 1 2 1 Tool/Special . | . . . . . Unused Backups 10 | . . . . 10 Power 3 | . . . . 3 Propulsion 1 | . . . . 1 Utility 5 | . . . . 5 Weapon 1 | . . . . 1 Tool/Special . | . . . . . Average Slot Usage (%) 75 | . 94 94 88 33 Engine 10 | . 13 14 14 . Treads 21 | . 28 28 28 4 Wheel 1 | . . . . 4 Storage 11 | . 14 14 14 4 Hackware 1 | . . . . 5 Protection 4 | . 9 8 3 1 Energy Gun 20 | . 28 28 27 2 Peak Build Rating 30 | 6 7 7 11 30 Average Rating 9 | 3 6 6 7 16 On Entrance 5 | . 6 7 6 9 Avg Prop Armor Cover (%) 22 | . . . . 22 Naked Turns . | . . . . . Heaviest Build 37 | 11 29 29 31 37 Greatest Support 40 | 40 40 40 40 40 Greatest Overweight (x) 10 | . . . . 10 Average Overweight (x) . | . . . . . Largest Inventory Capacity 15 | 8 15 15 15 15 Average Capacity 13 | 6 9 15 15 12 Most Carried 15 | 5 6 6 8 15 Average Carried 6 | 3 4 5 6 9 Final Capacity 15 | 8 15 15 15 5 Final Carried 8 | 4 5 6 8 4 Class Distribution -------------------- 86% | Mutant 7% | Hacker-Mutant 3% | Scavenger-Mutant Dominant Class ---------------- Mutant | -10/Materials Mutant | -10/Subcaves Mutant | -9/Scraptown Mutant | -6/Factory Resources | -11 -10 -10 -9 -6 ----------- Run | Yrd Mat Sub Scr Fac Matter Collected 678 | 181 99 5 30 363 Remotely . | . . . . . Salvage Created 1158 | . 239 78 . 841 Parts 50 | . 12 5 . 33 Haulers Intercepted . | . . . . . Recyclers Shooed 1 | . . . . 1 Parts Field Recycled . | . . . . . Retrieved Matter . | . . . . . Parts Self-Destructed 5 | . . 5 . . Prevented . | . . . . . Parts Restored . | . . . . . Kills | -11 -10 -10 -9 -6 ------- Run | Yrd Mat Sub Scr Fac Combat Hostiles Destroyed 16 | . 6 2 . 8 Guns 14 | . 6 2 . 6 Cannons 1 | . . . . 1 Classes Destroyed 8 | . 1 . . 7 Worker 4 | . . . . 4 Tunneler 1 | . . . . 1 Recycler 2 | . . . . 2 Grunt 10 | . 6 2 . 2 Brawler 1 | . . . . 1 Sentry 2 | . . . . 2 Hunter 2 | . . . . 2 Programmer 1 | . . . . 1 Best Kill Streak 2 | . 2 2 . 2 Combat Bots Only 2 | . 2 2 . 2 Max Kills in Single Turn 1 | . 1 1 . 1 Gunslinging . | . . . . . Exploded . | . . . . . Melee . | . . . . . Uniques/NPCs Destroyed . | . . . . . Combat | -11 -10 -10 -9 -6 -------- Run | Yrd Mat Sub Scr Fac Hostile Shots Fired 365 | . 33 18 17 297 Missed 108 | . 2 4 1 101 Hits 257 | . 31 14 16 196 Melee 2 | . . . . 2 Projectile 255 | . 31 14 16 194 Critical Strikes 4 | . . 1 2 1 Damage Taken 3431 | . 386 186 328 2531 Core 916 | . 82 23 . 811 Absorbed by Shields . | . . . . . Ignored by Resistances 33 | . . . . 33 Core Remaining (%) 79 | 100 . . 58 . Volleys Fired 88 | . 24 6 . 58 Largest 2 | . 2 2 . 2 Hottest 118 | . 90 90 . 118 Shots Fired 163 | . 48 12 . 103 Gun 153 | . 48 12 . 93 Cannon 8 | . . . . 8 Launcher . | . . . . . Special 2 | . . . . 2 Kinetic 38 | . . . . 38 Thermal 123 | . 48 12 . 63 Explosive . | . . . . . Electromagnetic . | . . . . . Piercing 2 | . . . . 2 Robot Hit Streak 16 | . 10 13 . 16 Robot Miss Streak 4 | . 1 2 . 4 Penetration Max 1 | . . . . 1 Secondary Targets 2 | . 1 . . 1 Max Gunslinging Chain 1 | . 1 . . 1 Shots Hit Robots 134 | . 38 10 1 85 Core Hits 75 | . 14 5 . 56 Critical Kills . | . . . . . Critical Parts Destroyed 1 | . . . . 1 Critical Strikes 3 | . 1 . . 2 Burn 1 | . 1 . . . Smash 1 | . . . . 1 Impale 1 | . . . . 1 Melee Attacks 10 | . . . 8 2 Impact 10 | . . . 8 2 Slashing . | . . . . . Piercing . | . . . . . Sneak Attacks 2 | . . . . 2 Combat Hostiles . | . . . . . Follow-up Attacks . | . . . . . Damage Inflicted 2350 | . 441 132 55 1722 Guns 1846 | . 441 132 . 1273 Cannons 258 | . . . . 258 Explosions . | . . . . . Melee 197 | . . . 55 142 Ramming 31 | . . . . 31 Kinetic 588 | . . . . 588 Thermal 1516 | . 441 132 . 943 Explosive . | . . . . . Electromagnetic . | . . . . . Impact 197 | . . . 55 142 Slashing . | . . . . . Piercing 18 | . . . . 18 Highest Corruption 3 | . . . . 3 Average Corruption 1 | . . . . 1 Corruption Purged . | . . . . . Corruption Blocked . | . . . . . Effects 1 | . . . . 1 Message Errors 1 | . . . . 1 Overload Shots . | . . . . . Overflow Damage 144 | . . . . 144 Projectiles 27 | . . . . 27 Explosions . | . . . . . Melee 117 | . . . . 117 Knockbacks 2 | . . . 1 1 Impact 2 | . . . 1 1 Kinetic . | . . . . . Secondary . | . . . . . Self-Inflicted Damage 13 | . . . . 13 Shots . | . . . . . Rammed 6 | . . . . 6 Targets Rammed 7 | . . . . 7 Kicked 1 | . . . . 1 Crushed . | . . . . . Highest Temperature 423 | . 233 5 22 423 Average Temperature 78 | . 97 4 14 67 Received Heat Transfer 1244 | . 222 126 242 654 Effects 2 | . . . . 2 Shutdowns 1 | . . . . 1 Matter Decay 1 | . . . . 1 Siege Activations . | . . . . . Martial Activations . | . . . . . Shielding Activations . | . . . . . Robots Disrupted . | . . . . . Combat Hostiles . | . . . . . Robots Corrupted 1 | . . . . 1 Combat Hostiles . | . . . . . Parts Fried . | . . . . . Impact Corruptions 4 | . . . . 4 Robots Melted 1 | . . . . 1 Combat Hostiles 1 | . . . . 1 Parts Melted 11 | . 5 1 . 5 Heat Transferred 3413 | . 1264 335 . 1814 Parts Sabotaged . | . . . . . Parts Stolen . | . . . . . Parts Stripped . | . . . . . Power Chain Reactions . | . . . . . Alert | -11 -10 -10 -9 -6 ------- Run | Yrd Mat Sub Scr Fac Maximum Alert Level . | . . . . . Low Security (%) 100 | 100 100 . . 100 Level 1 . | . . . . . Level 2 . | . . . . . Level 3 . | . . . . . Level 4 . | . . . . . Level 5 . | . . . . . High Security . | . . . . . Max Security . | . . . . . Peak Influence 153 | . 79 . . 153 Initial . | . . . . . Average 21 | . 18 . . 24 Influence Increases 728 | . 185 50 . 493 Destroy 0b10 Robot/C 340 | . 120 40 . 180 Destroy 0b10 Robot/NC 35 | . . . . 35 Destroy Leader 90 | . 20 10 . 60 Allied During Kill 1 | . . . . 1 Successful Hack 21 | . . . . 21 Select Force Hacks 30 | . 30 . . . Destroy Structure 1 | . . . . 1 Partial Spotted 30 | . . . . 30 Lose Combat Pursuer 180 | . 15 . . 165 Influence Decreases 575 | . 185 50 . 340 Time Decay 465 | . 175 50 . 240 Lost Part 110 | . 10 . . 100 Squads Dispatched 6 | . 1 . . 5 Investigation 2 | . 1 . . 1 Extermination 2 | . . . . 2 Reinforcement 1 | . . . . 1 Assault . | . . . . . Garrison 1 | . . . . 1 Intercept . | . . . . . Searches Triggered . | . . . . . Construction Impeded . | . . . . . Haulers Reinforced 1 | . . . . 1 Active Scanning Responses . | . . . . . Cargo Convoy Interrupts . | . . . . . Stealth | -11 -10 -10 -9 -6 --------- Run | Yrd Mat Sub Scr Fac Distress Signals 1 | . . . . 1 Communications Jammed . | . . . . . Distress Signals . | . . . . . Times Spotted 32 | . 11 2 1 18 Peak Tracking Total 4 | . 3 2 4 4 Tactical Retreats 5 | . 1 . . 4 Traps | -11 -10 -10 -9 -6 ------- Run | Yrd Mat Sub Scr Fac Traps Triggered . | . . . . . Indirectly . | . . . . . Trap Hack Attempts . | . . . . . Triggered . | . . . . . Disarmed . | . . . . . Reprogrammed . | . . . . . Reused . | . . . . . Traps Extracted . | . . . . . Installed . | . . . . . Triggered . | . . . . . Machines | -11 -10 -10 -9 -6 ---------- Run | Yrd Mat Sub Scr Fac Machines Disabled 3 | . . . 3 . Max in Single Turn 1 | . . . 1 . Machines Repaired . | . . . . . Machines Dismantled . | . . . . . Machines Sabotaged . | . . . . . Overloaded Fab Kills . | . . . . . Hacking | -11 -10 -10 -9 -6 --------- Run | Yrd Mat Sub Scr Fac Machines Accessed 6 | . 1 . 2 3 Terminals 2 | . . . . 2 Fabricators 1 | . . . . 1 Repair Stations . | . . . . . Recycling Units 1 | . 1 . . . Scanalyzers . | . . . . . Garrison Access . | . . . . . Total Hacks 13 | . 3 . 5 5 Successful 9 | . 1 . 5 3 Failed 4 | . 2 . . 2 Catastrophic 1 | . . . . 1 Database Lockouts . | . . . . . Manual 5 | . 3 . . 2 Terminals 2 | . . . . 2 Fabricators 3 | . . . . 3 Repair Stations . | . . . . . Recycling Units 3 | . 3 . . . Scanalyzers . | . . . . . Garrison Access . | . . . . . Terminal Hacks 5 | . . . 5 . Robot Analysis 4 | . . . 4 . Proto ID Catalog 1 | . . . 1 . Fabricator Hacks 2 | . . . . 2 Load Schematic 1 | . . . . 1 Build 1 | . . . . 1 Repair Station Hacks . | . . . . . Recycling Unit Hacks . | . . . . . Scanalyzer . | . . . . . Garrison Access Hacks . | . . . . . Unauthorized Hacks 2 | . 1 . . 1 Terminals 1 | . . . . 1 Botnet 1 | . . . . 1 Fabricators . | . . . . . Repair Stations . | . . . . . Recycling Units 1 | . 1 . . . Tunnel 1 | . 1 . . . Scanalyzers . | . . . . . Garrison Access . | . . . . . Data Cores Recovered . | . . . . . Used . | . . . . . Hacking Detections 3 | . . . . 3 Full Trace Events 1 | . . . . 1 Feedback Events . | . . . . . Feedback Blocked . | . . . . . Robot Schematics Acquired . | . . . . . Robots Built . | . . . . . Authchips . | . . . . . Time . | . . . . . Total Robot Build Rating . | . . . . . Part Schematics Acquired 1 | . . . 1 . Parts Built 1 | . . . . 1 Authchips . | . . . . . Time 76 | . . . . 76 Total Part Build Rating 5 | . . . . 5 Part Studies Acquired . | . . . . . Parts Repaired . | . . . . . Time . | . . . . . Parts Recycled . | . . . . . Recycled Matter . | . . . . . Retrieved Matter . | . . . . . Retrieved Components . | . . . . . Parts Scanalyzed . | . . . . . Part Schematics Acquired . | . . . . . Parts Damaged . | . . . . . Bothacking | -11 -10 -10 -9 -6 ------------ Run | Yrd Mat Sub Scr Fac Used RIF Installer . | . . . . . Robots Hacked . | . . . . . Non-combat . | . . . . . Combat . | . . . . . Robot Hacks Applied . | . . . . . Relay Couplers Released . | . . . . . Fabnet Peak Effective % . | . . . . . Robots Rewired . | . . . . . Allies Hacked . | . . . . . Hacks Repelled . | . . . . . Allies | -11 -10 -10 -9 -6 -------- Run | Yrd Mat Sub Scr Fac Total Allies 1 | . . . . 1 Largest Group 1 | . . . . 1 Highest-Rated Group 10 | . . . . 10 Highest-Rated Ally 10 | . . . . 10 Total Orders . | . . . . . Ally Attacks 2 | . . . . 2 Total Damage 37 | . . . . 37 Kills 1 | . . . . 1 Allies Corrupted . | . . . . . Allies Melted . | . . . . . Intel | -11 -10 -10 -9 -6 ------- Run | Yrd Mat Sub Scr Fac Active Infowar (turns) 281 | . . . . 281 Sensors 281 | . . . . 281 Robot Analysis Total 4 | . . . 4 . Derelict Logs Recovered . | . . . . . Drone Launches . | . . . . . Drone Recoveries . | . . . . . Exploration | -11 -10 -10 -9 -6 ------------- Run | Yrd Mat Sub Scr Fac Turns Passed 4247 | 79 750 245 2055 1118 Spaces Moved 2605 | 51 246 108 1264 936 Core 567 | 16 . . . 551 Treads 1697 | 35 246 108 1264 44 Legs 35 | . . . . 35 Wheels 306 | . . . . 306 Hover . | . . . . . Flight . | . . . . . Fastest Speed 50 | 50 160 160 160 50 Average Speed 133 | 125 160 160 160 87 Slowest Speed 550 | 160 160 160 160 550 Overloaded Moves . | . . . . . Propulsion Burnouts . | . . . . . Robots Hopped . | . . . . . Potential Cave-ins . | . . . . . Cave-ins Triggered . | . . . . . Exploration Rate (%) 35 | 4 55 13 78 29 Regions Visited 4 Branch Regions 2 Pre-discovered Areas 2 | . 1 . 1 . Known Exits Taken . | . . . . . Unknown Exits Taken 4 | 1 1 1 1 . Scrap Searched 4 | . . . 4 . Spaces Dug 2 | . . . 2 . Terrain Destroyed 2 | . . . 2 . Melee 2 | . . . 2 . Projectile . | . . . . . AOE . | . . . . . Terrain Rammed . | . . . . . Walls Destroyed . | . . . . . Machines Disabled . | . . . . . Actions | -11 -10 -10 -9 -6 --------- Run | Yrd Mat Sub Scr Fac Total 3192 | 66 555 168 1282 1121 Wait 394 | . 278 54 . 62 Move 2601 | 50 245 107 1263 936 Hop . | . . . . . Pick Up 44 | 10 4 1 5 24 Fast Attach 2 | . . . . 2 Attach 26 | 6 2 . 1 17 Detach . | . . . . . Swap 9 | . 1 . 3 5 Drop 11 | . 1 . 2 8 Fire 88 | . 24 6 . 58 Melee 10 | . . . 8 2 Ram 6 | . . . . 6 Kick 1 | . . . . 1 Crush . | . . . . . Escape Stasis . | . . . . . Rewire . | . . . . . Trap . | . . . . . Miscellaneous . | . . . . . Route ------- -11/Scrapyard -10/Materials (discovered 2 exits: [*Mat] / [*Sub]) -10/Subcaves -9/Scraptown -6/Factory (discovered 1 exit: [*Fac]) History --------- Turn | Location | Event 7 | -11/Scrapyard | Discovered new exit (range 15) 80 | -11/Scrapyard | Entered Materials 309 | -10/Materials | Build established: Mutant 461 | -10/Materials | Discovered new exit (range 16) 822 | -10/Materials | Discovered new exit (range 6) 830 | -10/Materials | Entered Subcaves 831 | -10/Subcaves | Approached by a straggling Scientist 1075 | -10/Subcaves | Entered Scraptown 1319 | -9/Scraptown | Discovered new exit (range 13) 1666 | -9/Scraptown | Visited UFD Registry 1666 | -9/Scraptown | Registered with UFD as "Cogcoil" 1725 | -9/Scraptown | Visited Scrapoid Research Area 1831 | -9/Scraptown | Visited The Evicted 1858 | -9/Scraptown | Visited Awakened 1867 | -9/Scraptown | Visited IN-MT5's Study 2403 | -9/Scraptown | Visited Analyses Database 2435 | -9/Scraptown | Visited Science Guys 2512 | -9/Scraptown | Visited DA-N13 Charitable Foundation 2519 | -9/Scraptown | Found DCF Scrap (30 items) 2605 | -9/Scraptown | Visited Infowarlord's Domain 2618 | -9/Scraptown | Found Exp. Sensor Array 2657 | -9/Scraptown | Visited Curators Association 2772 | -9/Scraptown | Visited LU-1G1's Boring Crew 3055 | -9/Scraptown | Attacked by Scraptown defenders 3130 | -9/Scraptown | Entered Factory 3130 | -6/Factory | Evolved 8 slots: Propulsion x3, Utility x5 3349 | -6/Factory | Garrison activated, responded to threat 3482 | -6/Factory | Lost 7 parts (1p3n1u2w) 3801 | -6/Factory | Core integrity fell below 50% 3827 | -6/Factory | Lost 3 parts (2n1u) 3952 | -6/Factory | Lost 3 parts (2u1w) 4166 | -6/Factory | Discovered new exit (range 16) 4179 | -6/Factory | Fabricated IN-MT5's Pitchfork "Insurrection"? 4187 | -6/Factory | Core integrity fell below 20% 4240 | -6/Factory | Reprogrammed and armed K-01 Serf 4241 | -6/Factory | Build established: Hacker-Mutant 4248 | -6/Factory | Self-destructed Last Messages --------------- K-01 Serf cleans the Megafabricator. >> FABRICATOR: Completed IN-MT5's Pitchfork "Insurrection"? K-01 Serf cleans the Megafabricator. Dropped Com. Wheel. Acquired IN-MT5's Pitchfork "Insurrection". T-07 Excavator destroyed. K-01 Serf collects debris. K-01 Serf suffers critical hit (Impale). K-01 Serf destroyed. K-01 Serf collects debris. IN-MT5's Pitchfork "Insurrection" reprograms and arms K-01 Serf. [Achievement: Peasant Uprising] P-60 Hacker suffers critical hit (Impale). ALERT: Cargo convoy en route, clear transfer corridor. P-60 Hacker suffers critical hit (Impale). P-60 Hacker destroyed. Acquired 33 matter. Map ----- +----------------------------------------------------+ | #?????????????? ???# #?# #??????? | | #?????????????? ???# #?# #??????? | | #????????????? ??# #?# #??????? | | #????????????? ??# #?# #??????? | | #???????????? ?# #?# #??????? | | #???????????? ?# #?# #??????? | | #???????????# # #?# +??????? | | #???????????# # #?# #??????? | | #?????????????###+##############/##+##### #??????? | | #??????????????? ^ ! #??????? | | #????????????????# ^ = ##??????? | | #????????????????#=! """ """ "" "" #???????? | | #????????????????#!! """ """ ""F"" #???????? | | #????????????????#! """ """ """ #?????### | | #????????????????# ###### | | #????????????????+ " | | #????????????????# ########+### | | ?????????????????# #?????# #?# # | | ?????????????????# ######?????# #?? # | | ?????????????????# ######??????????#! #??? | | ?????????????????# %##############??# #???? | | ?????????????????# = #??# #???? | | ?????????????????# k #??# #???? | | ?????????????????# A #??# #???? | | ?????????????????# | #??#####???? | | ?????????????????# =@* #??????????? | | ?????????????????######### #??????????? | | ?????????????????????????# #??????????? | | ?????????????????????????# t #??????????? | | ?????????????????????????# +??????????? | | ?????????????????????????# #??????????? | | ?????????????????????????# #??????????? | | ?????????????????????????# #??????????? | | ?????????????????????????# ########??????????? | | ?????????????????????????# #?????????????????? | | ?????????????????????????# #?????????????????? | | ?????????????????????????+ +?????????????????? | | ?????????????????????????# = #?????????????????? | | ?????????????????????????#*%! #?????????????????? | | ?????????????????????????# = #?????????????????? | | ?????????????????????????# #?????????????????? | | ?????????????????????????# #?????????????????? | | ?????????????????????????# #?????????????????? | | ?????????????????????????? #?????????????????? | | ?????????????????????????? #?????????????????? | | ?????????????????????????? ??????????????????? | | ?????????????????????????? ????????????????????? | | ?????????????????????????????????????????????????? | | ?????????????????????????????????????????????????? | | ?????????????????????????????????????????????????? | +----------------------------------------------------+ Best States ------------- Heat Dissipation 37 Energy Generation 18 Energy Capacity 160 Matter Stores 300 Matter Capacity 300 Sight Range 16 Robot Scan Range 16 Terrain Scan Density 10 Armor Coverage 150 Resistance: EM 15 Evasion (%) 50 Recoil Reduction 2 Offensive Hacking 24 Defensive Hacking 22 Item Schematics ----------------- IN-MT5's Pitchfork "Insurrection" | -9/Scraptown | Archive Robot Schematics ------------------ None Fabricated ------------ IN-MT5's Pitchfork "Insurrection" | x1 | -6/Factory Repaired ---------- Nothing Studied --------- None Alien Tech Used ----------------- None Achievements -------------- Peasant Uprising Challenges ------------ None Game ------ Seed ExoskeletonBottomlessShooter Manual? 0 Play Time 00:20:18 Cumulative 307.1 hours Start 2025.10.23 @ 14:38:50 End 2025.10.23 @ 15:11:03 Sessions 2 Manual Loads 0 Difficulty Rogue Special Mode None Game No. 238 Rogue 238 Adventurer 0 Explorer 0 Win Type - Total 25 Types 12/1/7/2/1/0/0/1/0/1 Lore% 94 Gallery% 87 Achievement% 54 Wizard Run 0 Options --------- Layout 1 ASCII 0 Keyboard 0 Movement Numpad Keybinds 0 Fullscreen 1 Font 24/Proggy Map View 50x35 Zoom Use 0% Tactical HUD 0 Map Filters NONE Filters NONE Steam 1 RUN: 1d7ae2dc-fabc-4ad4-acd0-f97554d9c651